lending/lending_fUSD_20241007
["ID","MTS","AMOUNT","RATE_DAILY","PERIOD"]
[339985940,1728277838834,-408.231534,0.00035743,2]
[339985942,1728277838843,-151.100705,0.00035748,21]
[339985944,1728277838852,-424.5117885,0.0003579,120]
[339985946,1728277838861,-12161.8709028,0.0003579,6]
[339985948,1728277838870,-2000.0,0.00035795,2]
[339985949,1728277838879,-1141.81634154,0.00035797,8]
[339985951,1728277838888,-151.100705,0.00035798,22]
[339985953,1728277838897,-273.49987212,0.00035799,15]
[339985955,1728277838907,-967.4436,0.00035799,2]
[339985957,1728277838916,-2078.5959,0.00035799,2]
[339985958,1728277838925,-156.0,0.000358,2]
[339985959,1728277838934,-253.3719,0.000358,2]
[339985960,1728277838942,-1830.4686,0.000358,2]
[339985961,1728277838951,-131937.7959,0.000358,2]
[339985962,1728277838961,-1654.3905,0.000358,2]
[339985963,1728277838969,-7600.0,0.000358,13]
[339985964,1728277838978,-151.100705,0.00035848,22]
[339985965,1728277838987,-7500.0,0.00035854,2]
[339985966,1728277838996,-4191.14480864,0.00035854,2]
[339985967,1728277839006,-681.0252889,0.00035865,2]
[339985968,1728277839015,-247.93049023,0.00035873,2]
[339985969,1728277839024,-500.0,0.00035873,5]
[339985970,1728277839033,-311.13955363,0.00035889,2]
[339985971,1728277839042,-36485.6127083,0.0003589,6]
[339985972,1728277839051,-18209.20282991,0.0003589,6]
[339985973,1728277839063,-54762.02258669,0.0003589,6]
[339985974,1728277839072,-163.31619463,0.00035897,2]
[339985975,1728277839082,-151.100705,0.00035898,23]
[339985976,1728277839091,-500.0,0.00035898,15]
[339985977,1728277839104,-500.0,0.00035898,15]
[339985978,1728277839113,-500.0,0.00035898,15]
[339985979,1728277839122,-500.0,0.00035898,15]
[339985980,1728277839131,-199.99730087,0.00035898,15]
[339985981,1728277839140,-500.0,0.00035898,15]
[339985982,1728277839149,-419.8642199,0.00035899,15]
[339985983,1728277839158,-151.886237,0.00035899,7]
[339985984,1728277839167,-102710.3434572,0.00035899,35]
[339986002,1728278019752,155.35,0.00010959,2]
[339986003,1728278220120,2026.0,0.00025,3]
[339986004,1728278289885,810.0,0.00025,3]
[339986005,1728278290825,729.0,0.00025,3]
[339986006,1728278607806,154.56,0.00010959,2]
[339986007,1728278648676,250.0,0.00011,2]
[339986008,1728278649767,300.0,0.00013,2]
[339986009,1728278650846,350.0,0.00015,2]
[339986010,1728278651924,400.0,0.00017,2]
[339986011,1728278708750,46485.53,0.00011,2]
[339986012,1728278708780,50000.0,0.00011,2]
[339986013,1728278708810,50000.0,0.00011,2]
[339986014,1728278708839,50000.0,0.00011,2]
[339986015,1728278708868,50000.0,0.00011,2]
[339986016,1728278708896,50000.0,0.00011,2]
[339986017,1728278708927,76461.0,0.00011,2]
[339986018,1728278708956,701772.54221947,0.00011,2]
[339986027,1728278879120,816196.4543755,0.00011,2]
[339986039,1728279032243,-300.0,0.00019725,2]
[339986041,1728279032252,-156.86780067,0.000201,2]
[339986042,1728279032262,-420.0,0.00021484,2]
[339986044,1728279032271,-215.28178953,0.00023401,2]
[339986046,1728279032359,-287.71821047,0.00023401,2]
[339986047,1728279032368,-117.63178953,0.000269,2]
[339986048,1728279032477,-2302.36821047,0.000269,2]
[339986049,1728279032486,-81280.1047664,0.00027,7]
[339986050,1728279032495,-11862.52702313,0.000299,2]
[339986051,1728279032507,-1729.66927796,0.000299,2]
[339986055,1728279038303,-529.76522685,0.000299,2]
[339986056,1728279038366,-306.42367944,0.000299,2]
[339986057,1728279038377,-7635.85806297,0.000299,2]
[339986058,1728279038534,-314.51665024,0.000299,2]
[339986059,1728279038597,-28955.39509402,0.000299,2]
[339986072,1728279040392,-4897.96370117,0.000299,2]
[339986073,1728279040402,-224.97438348,0.0002999,2]
[339986074,1728279040411,-3019.0,0.0003,30]
[339986075,1728279040421,-10626.88667478,0.0003,2]
[339986076,1728279040430,-15278.64225225,0.0003,2]
[339986077,1728279040439,-2000.0,0.0003,14]
[339986078,1728279040448,-1719.05202369,0.0003,2]
[339986079,1728279040457,-1009.26321073,0.0003,2]
[339986080,1728279040466,-250.0,0.00030317,2]
[339986081,1728279040475,-382.91,0.00030324,2]
[339986082,1728279040484,-1538.38,0.00032158,2]
[339986083,1728279040493,-194.0,0.00032158,30]
[339986084,1728279040503,-6483.01414744,0.00032158,3]
[339986085,1728279040512,-14531.08694864,0.00032158,3]
[339986086,1728279040521,-5199.20960973,0.00032158,3]
[339986087,1728279040530,-4740.89096402,0.00032158,30]
[339986088,1728279040539,-14186.42272372,0.00032158,30]
[339986089,1728279040548,-721.78245808,0.00032158,2]
[339986090,1728279040558,-2000.0,0.000322,3]
[339986091,1728279040567,-375.72,0.00032518,2]
[339986092,1728279040576,-382.91,0.00032588,2]
[339986093,1728279040585,-4267.81,0.00032872,2]
[339986094,1728279040594,-250.0,0.00032878,2]
[339986095,1728279040603,-455.80186098,0.000329,2]
[339986096,1728279040613,-1677.01,0.0003292,2]
[339986097,1728279040622,-250.0,0.00033187,2]
[339986098,1728279040631,-2928.66851099,0.000332,2]
[339986100,1728279040641,-640.0,0.0003328,2]
[339986102,1728279040651,-413.89,0.00033507,120]
[339986104,1728279040660,-150.48,0.00033948,2]
[339986106,1728279040672,-300.0,0.00034045,2]
[339986108,1728279040687,-1719.67,0.00034066,2]
[339986109,1728279040696,-213.78,0.00034167,2]
[339986110,1728279040705,-180.74,0.00034188,120]
[339986111,1728279040714,-150.0,0.0003419,2]
[339986112,1728279040723,-184.07,0.00034251,2]
[339986113,1728279040735,-213.78,0.00034337,2]
[339986114,1728279040744,-360.0,0.00034483,2]
[339986115,1728279040753,-5425.22,0.00034649,2]
[339986116,1728279040762,-1525.13,0.00034658,2]
[339986117,1728279040772,-150.84,0.00034658,2]
[339986119,1728279040781,-223.64,0.00034668,2]
[339986121,1728279040790,-846.8,0.00034741,2]
[339986122,1728279040800,-595.89712777,0.00034782,2]
[339986123,1728279040809,-1185.24533313,0.000348,15]
[339986124,1728279040818,-315.044972,0.00034852,2]
[339986125,1728279040830,-67.865028,0.00034852,2]
[339986126,1728279040839,-500.0,0.00034873,2]
[339986127,1728279040847,-203.0902999,0.00034879,7]
[339986128,1728279040863,-90.81465403,0.00034879,7]
[339986129,1728279040872,-388.44295468,0.0003488,2]
[339986134,1728279043258,-543.803081,0.0003488,2]
[339986138,1728279043374,-12648.50162918,0.0003488,2]
[339986139,1728279046200,-9549.88157549,0.0003488,2]
[339986140,1728279161748,168.75,0.00010959,2]
[339986141,1728279349682,3000.0,0.00023,30]
[339986142,1728279373094,2329.16,0.00023,30]
[339986143,1728279675979,166.16,0.00010959,2]
[339986155,1728280045513,255.0,0.00025,3]
[339986172,1728280175166,669.4450818,0.00023,30]
[339986179,1728280231368,-320.0,0.0002275,2]
[339986180,1728280231377,-160.15,0.00023661,2]
[339986181,1728280231387,-328.0,0.000237,2]
[339986182,1728280231396,-320.0,0.0002391,2]
[339986183,1728280231406,-320.0,0.0002508,2]
[339986184,1728280231415,-320.0,0.0002624,2]
[339986185,1728280231424,-320.0,0.0002741,2]
[339986186,1728280231433,-231.8500004,0.0002741,2]
[339986187,1728280231444,-54.5299996,0.0002741,2]
[339986188,1728280231453,-320.0,0.0002857,2]
[339986189,1728280231462,-1792.87,0.0002857,2]
[339986190,1728280231471,-499.99,0.0002857,2]
[339986191,1728280231480,-341.4,0.00029201,2]
[339986192,1728280231489,-150.42,0.00029432,2]
[339986193,1728280231498,-1243.91,0.000295,2]
[339986194,1728280231507,-250.0,0.0002962,2]
[339986195,1728280231516,-246.42,0.00029649,2]
[339986196,1728280231525,-4223.46,0.00029667,2]
[339986197,1728280231534,-500.0,0.00029702,2]
[339986198,1728280231543,-320.0,0.0002974,2]
[339986199,1728280231552,-1000.0,0.00029745,2]
[339986200,1728280231561,-1000.0,0.00029746,2]
[339986201,1728280231570,-943.09,0.0002979,2]
[339986202,1728280231579,-1852.42,0.00029929,2]
[339986203,1728280231588,-291.83,0.00029951,2]
[339986204,1728280231597,-174.37,0.00029998,2]
[339986205,1728280231606,-200.0,0.00030096,2]
[339986206,1728280231616,-250.0,0.00030196,2]
[339986207,1728280231625,-150.0,0.00030317,2]
[339986208,1728280231634,-250.0,0.00030389,2]
[339986209,1728280231643,-23900.0,0.0003047,2]
[339986210,1728280231652,-412.52,0.00030471,30]
[339986211,1728280231661,-300.0,0.00030471,2]
[339986212,1728280231670,-182.26,0.00030548,120]
[339986213,1728280231679,-167.08,0.00030639,2]
[339986214,1728280231688,-500.0,0.00030657,2]
[339986215,1728280231698,-320.0,0.000309,2]
[339986216,1728280231707,-150.0,0.00031103,2]
[339986217,1728280231716,-341.4,0.00031465,2]
[339986218,1728280231725,-150.42,0.00031566,2]
[339986219,1728280231734,-22639.4432,0.00031858,2]
[339986220,1728280231743,-1424.1876,0.00031858,2]
[339986221,1728280231752,-7534.7166,0.00031858,2]
[339986223,1728280231762,-10032.4037,0.00031858,2]
[339986225,1728280231771,-2004.617,0.00031858,2]
[339986227,1728280231780,-909.142,0.00031858,2]
[339986229,1728280231790,-2500.0,0.00031858,2]
[339986231,1728280231799,-1066.72079979,0.00031858,15]
[339986232,1728280231809,-6090.07165026,0.00031948,2]
[339986233,1728280231818,-190.17422917,0.00031957,2]
[339986234,1728280231827,-173.66652308,0.00031957,2]
[339986235,1728280231837,-5654.34,0.00031957,2]
[339986236,1728280231846,-157.0,0.00031958,2]
[339986237,1728280231856,-1000.0,0.00031958,2]
[339986238,1728280231865,-4894.8293,0.00031958,2]
[339986239,1728280231874,-3130.4732,0.00031958,2]
[339986240,1728280231883,-38343.03856753,0.00031958,2]
[339986241,1728280231899,-2729.80673935,0.00031958,2]
[339986242,1728280231911,-554.04576987,0.00031958,2]
[339986243,1728280231922,-925.1775,0.00031958,2]
[339986244,1728280231933,-19187.27518699,0.00031958,2]
[339986245,1728280231945,-365.18013912,0.00031958,2]
[339986250,1728280237498,-29068.07599714,0.00031958,2]
[339986251,1728280237507,-5814.2934,0.00031958,2]
[339986252,1728280237516,-375.2676,0.00031958,2]
[339986253,1728280237525,-1141.4975579,0.00031958,4]
[339986254,1728280237534,-1048.03048891,0.00031958,2]
[339986255,1728280237543,-97469.5472997,0.00032048,5]
[339986256,1728280237552,-205.73346776,0.00032057,2]
[339986257,1728280237561,-165.87087911,0.00032058,31]
[339986258,1728280237570,-245000.0,0.00032058,2]
[339986259,1728280237579,-157.968,0.00032058,31]
[339986260,1728280237588,-151.998136,0.00032058,7]
[339986261,1728280237597,-151.0,0.00032058,7]
[339986262,1728280237606,-151.0,0.00032058,7]
[339986263,1728280237615,-151.0,0.00032058,7]
[339986264,1728280237624,-151.0,0.00032058,7]
[339986265,1728280237633,-153.507972,0.00032058,7]
[339986266,1728280237642,-320.0,0.0003207,2]
[339986267,1728280237651,-164.42,0.00032131,2]
[339986268,1728280237660,-150.0,0.00032473,2]
[339986269,1728280237669,-161.12,0.00032743,2]
[339986270,1728280237678,-163.7261175,0.000329,2]
[339986271,1728280237687,-200.0,0.000329,2]
[339986272,1728280237696,-1048.03048886,0.00032954,2]
[339986273,1728280237706,-24367.3868249,0.0003298,5]
[339986274,1728280237715,-207.42636909,0.0003298,2]
[339986275,1728280237723,-24367.3868249,0.0003299,5]
[339986276,1728280237733,-12128.7810608,0.0003299,5]
[339986277,1728280237742,-35000.0,0.00033,3]
[339986278,1728280237759,-35000.0,0.00033,3]
[339986279,1728280237768,-151.0,0.00033,7]
[339986280,1728280237777,-206.90968,0.00033,7]
[339986281,1728280237786,-151.0,0.00033,7]
[339986282,1728280237795,-151.0,0.00033,7]
[339986283,1728280237805,-151.0,0.00033,7]
[339986284,1728280237814,-151.0,0.00033,7]
[339986285,1728280237823,-151.0,0.00033,7]
[339986286,1728280237832,-151.0,0.00033,7]
[339986287,1728280237841,-151.0,0.00033,7]
[339986288,1728280237851,-151.0,0.00033,7]
[339986289,1728280237860,-151.0,0.00033,7]
[339986290,1728280237869,-151.0,0.00033,7]
[339986292,1728280237881,-151.0,0.00033,7]
[339986293,1728280237891,-151.0,0.00033,7]
[339986295,1728280237901,-412.52,0.00033055,120]
[339986297,1728280237910,-168.24,0.00033076,2]
[339986299,1728280237919,-167.08,0.00033167,2]
[339986301,1728280237928,-180.0,0.00033197,120]
[339986303,1728280237937,-320.0,0.0003323,2]
[339986305,1728280237946,-163.31619463,0.00033236,2]
[339986307,1728280237955,-12183.6934125,0.00033239,5]
[339986309,1728280237963,-1066.72079975,0.00033294,15]
[339986311,1728280237973,-1000.0,0.00033465,2]
[339986313,1728280237982,-150.42,0.000337,2]
[339986315,1728280237991,-341.4,0.00033729,2]
[339986316,1728280238000,-1048.03048886,0.0003395,2]
[339986317,1728280238009,-320.0,0.000344,2]
[339986318,1728280238018,-866.19,0.00034521,2]
[339986319,1728280238027,-534.3,0.00034521,2]
[339986320,1728280238037,-305.74,0.00034521,2]
[339986321,1728280238046,-152.64,0.00034521,2]
[339986322,1728280238055,-263.09,0.00034521,2]
[339986323,1728280238063,-534.3,0.00034521,2]
[339986324,1728280238073,-534.3,0.00034521,2]
[339986325,1728280238082,-534.3,0.00034521,2]
[339986326,1728280238091,-534.3,0.00034521,2]
[339986327,1728280238100,-534.3,0.00034521,2]
[339986328,1728280238111,-534.3,0.00034521,2]
[339986329,1728280238119,-534.3,0.00034521,2]
[339986330,1728280238128,-534.3,0.00034521,2]
[339986331,1728280238137,-534.3,0.00034521,2]
[339986332,1728280238146,-534.3,0.00034521,2]
[339986333,1728280238154,-534.3,0.00034521,2]
[339986334,1728280238163,-12128.7810608,0.0003453,5]
[339986335,1728280238173,-151.0,0.0003453,7]
[339986336,1728280238181,-151.0,0.0003453,7]
[339986337,1728280238190,-151.0,0.0003453,7]
[339986338,1728280238199,-151.0,0.0003453,7]
[339986339,1728280238208,-413.00800588,0.00034542,2]
[339986340,1728280238217,-154.3714874,0.0003466,8]
[339986341,1728280238226,-1066.72079975,0.0003473,15]
[339986342,1728280238235,-847.0,0.00034739,2]
[339986343,1728280238245,-12183.6934125,0.0003476,5]
[339986344,1728280238253,-12128.7810608,0.0003476,5]
[339986345,1728280238262,-151.0,0.0003477,7]
[339986346,1728280238373,-151.0,0.0003477,7]
[339986347,1728280238383,-151.0,0.0003477,7]
[339986348,1728280238392,-287.798907,0.0003477,7]
[339986349,1728280238401,-151.0,0.0003477,7]
[339986350,1728280238410,-151.0,0.0003477,7]
[339986351,1728280238418,-151.0,0.0003477,7]
[339986352,1728280238427,-232.453507,0.0003477,7]
[339986353,1728280238436,-151.933932,0.0003477,7]
[339986354,1728280238445,-151.0,0.0003477,7]
[339986355,1728280238454,-24367.3868249,0.0003477,5]
[339986356,1728280238463,-24257.5621216,0.0003477,5]
[339986357,1728280238471,-151.0,0.0003477,7]
[339986358,1728280238480,-257.46211,0.0003477,7]
[339986359,1728280238489,-151.0,0.0003477,7]
[339986360,1728280238498,-156.302153,0.0003477,7]
[339986361,1728280238508,-151.0,0.0003477,7]
[339986362,1728280238516,-151.0,0.0003477,7]
[339986363,1728280238525,-217.0,0.0003477,2]
[339986364,1728280238534,-262.1187,0.0003478,2]
[339986365,1728280238543,-37593.9223,0.0003478,2]
[339986366,1728280238552,-500.0,0.0003478,2]
[339986367,1728280238561,-1087.7589,0.0003478,2]
[339986368,1728280238570,-7500.0,0.0003478,2]
[339986369,1728280238579,-201.14718648,0.0003478,7]
[339986370,1728280238588,-244.26684768,0.000348,2]
[339986371,1728280238596,-1700.0,0.000348,12]
[339986372,1728280238605,-151.0,0.0003485,7]
[339986373,1728280238614,-151.0,0.0003485,7]
[339986374,1728280238623,-151.0,0.0003485,7]
[339986375,1728280238633,-36551.0802374,0.0003485,5]
[339986376,1728280238641,-24257.5621216,0.0003485,5]
[339986377,1728280238651,-152.099886,0.0003486,7]
[339986378,1728280238659,-152.197361,0.0003486,7]
[339986379,1728280238669,-151.0,0.0003486,7]
[339986380,1728280238678,-151.0,0.0003486,7]
[339986381,1728280238687,-151.0,0.0003486,7]
[339986382,1728280238697,-151.0,0.0003486,7]
[339986383,1728280238706,-151.654776,0.0003486,7]
[339986384,1728280238714,-151.0,0.0003486,7]
[339986385,1728280238723,-151.0,0.0003486,7]
[339986386,1728280238732,-151.0,0.0003486,7]
[339986387,1728280238741,-60918.4670623,0.0003486,5]
[339986388,1728280238751,-60643.9053041,0.0003486,5]
[339986389,1728280238760,-151.0,0.0003487,7]
[339986390,1728280238769,-152.527972,0.0003487,7]
[339986391,1728280238779,-151.337017,0.0003487,7]
[339986392,1728280238788,-151.0,0.0003487,7]
[339986393,1728280238797,-151.0,0.0003487,7]
[339986394,1728280238806,-160.018944,0.0003487,7]
[339986395,1728280238816,-151.0,0.0003487,7]
[339986396,1728280238825,-145545.37273,0.0003487,5]
[339986397,1728280238834,-151.0,0.0003487,7]
[339986398,1728280238843,-151.0,0.0003487,7]
[339986399,1728280238852,-284.365555,0.0003487,7]
[339986400,1728280238862,-500.0,0.00034873,5]
[339986401,1728280238872,-288605.63980045,0.0003488,2]
[339986402,1728280238881,-151.0,0.0003488,7]
[339986403,1728280238890,-151.0,0.0003488,7]
[339986404,1728280238900,-151.0,0.0003488,7]
[339986405,1728280238909,-151.0,0.0003488,7]
[339986406,1728280238919,-151.0,0.0003488,7]
[339986407,1728280238928,-151.0,0.0003488,7]
[339986408,1728280238937,-151.0,0.0003488,7]
[339986409,1728280238946,-151.0,0.0003488,7]
[339986410,1728280238957,-151.0,0.0003488,7]
[339986411,1728280238966,-151.0,0.0003488,7]
[339986412,1728280238975,-151.0,0.0003488,7]
[339986413,1728280238985,-153.875376,0.0003488,7]
[339986414,1728280238994,-151.0,0.0003488,7]
[339986415,1728280239003,-151.0,0.0003488,7]
[339986416,1728280239012,-228.716536,0.0003488,7]
[339986417,1728280239022,-166.24518,0.0003488,7]
[339986418,1728280239031,-151.0,0.0003488,7]
[339986419,1728280239040,-166.24518,0.0003488,7]
[339986420,1728280239049,-154.818576,0.0003488,7]
[339986421,1728280239058,-500.0,0.0003488,14]
[339986422,1728280239067,-295.18541386,0.0003488,14]
[339986423,1728280239076,-201.0,0.0003488,2]
[339986424,1728280239085,-181.700808,0.0003488,7]
[339986425,1728280239094,-151.0,0.0003488,7]
[339986426,1728280239105,-151.0,0.0003488,7]
[339986427,1728280239114,-151.0,0.0003488,7]
[339986428,1728280239123,-151.0,0.0003488,7]
[339986429,1728280239132,-153.555685,0.0003489,7]
[339986430,1728280239141,-153.436701,0.0003489,7]
[339986431,1728280239150,-151.0,0.0003489,7]
[339986432,1728280239159,-151.813733,0.0003489,7]
[339986433,1728280239168,-151.0,0.0003489,7]
[339986434,1728280239177,-151.0,0.0003489,7]
[339986435,1728280239187,-209.115634,0.0003489,7]
[339986436,1728280239196,-151.0,0.0003489,7]
[339986437,1728280239206,-151.0,0.0003489,7]
[339986438,1728280239215,-151.0,0.0003489,7]
[339986439,1728280239224,-151.0,0.0003489,7]
[339986440,1728280239234,-151.0,0.0003489,7]
[339986441,1728280239243,-152.802898,0.0003489,7]
[339986443,1728280239252,-151.988153,0.0003489,7]
[339986444,1728280239261,-166.24518,0.0003489,7]
[339986445,1728280239270,-166.24518,0.0003489,7]
[339986446,1728280239279,-190.349842,0.0003489,7]
[339986447,1728280239289,-166.24518,0.0003489,7]
[339986448,1728280239302,-166.24518,0.0003489,7]
[339986449,1728280239311,-12128.7810608,0.0003489,5]
[339986450,1728280239320,-160856.13373488,0.000349,30]
[339986451,1728280239329,-200.704756,0.000349,7]
[339986452,1728280239339,-151.0,0.000349,7]
[339986453,1728280239348,-151.0,0.000349,7]
[339986454,1728280239358,-152.746462,0.000349,7]
[339986455,1728280239371,-166.24518,0.000349,7]
[339986456,1728280239381,-166.24518,0.000349,7]
[339986457,1728280239391,-151.0,0.000349,7]
[339986458,1728280239400,-151.0,0.000349,7]
[339986459,1728280239409,-3500.0,0.000349,12]
[339986460,1728280239418,-299.854048,0.000349,7]
[339986461,1728280239427,-151.0,0.000349,7]
[339986462,1728280239437,-1048.03048886,0.00034946,2]
[339986463,1728280239446,-8500.0,0.00034991,6]
[339986464,1728280239455,-8500.0,0.00034991,6]
[339986465,1728280239464,-5000.0,0.00035,120]
[339986466,1728280239473,-2538.0,0.00035,120]
[339986467,1728280239482,-6000.0,0.00035,6]
[339986468,1728280239491,-400.0,0.00035,120]
[339986469,1728280239499,-8500.0,0.00035,6]
[339986470,1728280239508,-8500.0,0.00035,6]
[339986471,1728280239517,-8500.0,0.00035,6]
[339986472,1728280239526,-151.0,0.00035,7]
[339986473,1728280239535,-151.0,0.00035,7]
[339986474,1728280239544,-8500.0,0.00035,6]
[339986475,1728280239553,-166.24518,0.00035,7]
[339986476,1728280239562,-166.24518,0.00035,7]
[339986477,1728280239571,-151.0,0.00035,7]
[339986478,1728280239580,-151.0,0.00035,7]
[339986479,1728280239589,-8500.0,0.00035,6]
[339986480,1728280239598,-151.0,0.00035,7]
[339986481,1728280239608,-3508.98,0.0003518,48]
[339986482,1728280239617,-429.07,0.00035287,2]
[339986483,1728280239626,-150.0,0.00035287,2]
[339986484,1728280239635,-361.47,0.00035287,2]
[339986485,1728280239645,-150.0,0.00035287,2]
[339986486,1728280239654,-429.07,0.00035287,2]
[339986487,1728280239663,-150.0,0.00035287,2]
[339986488,1728280239673,-150.0,0.00035287,2]
[339986489,1728280239682,-429.07,0.00035287,2]
[339986490,1728280239691,-150.0,0.00035287,2]
[339986491,1728280239700,-150.0,0.00035287,2]
[339986492,1728280239710,-429.07,0.00035287,2]
[339986493,1728280239719,-150.0,0.00035287,2]
[339986494,1728280239728,-150.0,0.00035287,2]
[339986495,1728280239737,-429.07,0.00035287,2]
[339986496,1728280239746,-971.22,0.00035287,2]
[339986497,1728280239756,-534.3,0.00035342,2]
[339986498,1728280239765,-534.3,0.00035342,2]
[339986499,1728280239774,-311.54,0.00035342,2]
[339986500,1728280239783,-500.0,0.00035343,120]
[339986501,1728280239792,-151.100705,0.00035398,23]
[339986502,1728280239801,-167.25,0.00035461,2]
[339986503,1728280239810,-154.0,0.00035484,5]
[339986504,1728280239819,-151.100705,0.00035498,24]
[339986505,1728280239828,-5003.42656689,0.00035498,120]
[339986506,1728280239837,-320.0,0.0003556,2]
[339986507,1728280239846,-151.0,0.00035579,7]
[339986508,1728280239856,-296.624545,0.00035579,7]
[339986509,1728280239865,-207.42636909,0.0003558,2]
[339986510,1728280239874,-39642.75775062,0.0003559,2]
[339986511,1728280239892,-44849.58924938,0.0003559,2]
[339986512,1728280239901,-151.0,0.0003559,7]
[339986513,1728280239910,-151.950817,0.0003559,7]
[339986514,1728280239919,-166.24518,0.0003559,7]
[339986515,1728280239928,-166.24518,0.0003559,7]
[339986516,1728280239937,-166.24518,0.0003559,7]
[339986517,1728280239946,-166.24518,0.0003559,7]
[339986518,1728280239955,-151.0,0.0003559,7]
[339986519,1728280239964,-151.0,0.0003559,7]
[339986520,1728280239973,-11899.76385113,0.00035615,2]
[339986521,1728280239982,-152.349267,0.00035616,7]
[339986522,1728280239991,-500.0,0.00035616,2]
[339986523,1728280240000,-500.0,0.00035616,2]
[339986524,1728280240009,-500.0,0.00035616,2]
[339986525,1728280240019,-500.0,0.00035616,2]
[339986526,1728280240027,-500.0,0.00035616,2]
[339986527,1728280240036,-500.0,0.00035616,2]
[339986528,1728280240045,-500.0,0.00035616,2]
[339986529,1728280240054,-500.0,0.00035616,2]
[339986530,1728280240063,-1239.38,0.00035616,2]
[339986531,1728280240072,-403.44379748,0.00035616,2]
[339986532,1728280240081,-511.76457223,0.00035616,2]
[339986533,1728280240090,-503.83892633,0.00035616,2]
[339986534,1728280240099,-500.0,0.00035616,2]
[339986535,1728280240110,-500.0,0.00035616,2]
[339986536,1728280240122,-500.0,0.00035616,2]
[339986537,1728280240131,-500.0,0.00035616,2]
[339986538,1728280240140,-500.0,0.00035616,2]
[339986539,1728280240149,-500.0,0.00035616,2]
[339986540,1728280240159,-500.0,0.00035616,2]
[339986541,1728280240168,-500.0,0.00035616,2]
[339986542,1728280240177,-500.0,0.00035616,2]
[339986543,1728280240186,-500.0,0.00035616,2]
[339986544,1728280240195,-500.0,0.00035616,2]
[339986545,1728280240204,-500.0,0.00035616,2]
[339986546,1728280240213,-500.0,0.00035616,2]
[339986547,1728280240222,-500.0,0.00035616,2]
[339986548,1728280240231,-500.0,0.00035616,2]
[339986549,1728280240240,-500.0,0.00035616,5]
[339986550,1728280240250,-1178.25,0.00035616,2]
[339986551,1728280240260,-500.0,0.00035616,2]
[339986552,1728280240269,-536.87556521,0.00035616,2]
[339986553,1728280240279,-20000.0,0.00035616,2]
[339986554,1728280240288,-500.0,0.00035616,2]
[339986555,1728280240301,-500.0,0.00035616,2]
[339986556,1728280240311,-1674.4,0.00035616,2]
[339986557,1728280240321,-505.16214334,0.00035616,2]
[339986558,1728280240330,-500.0,0.00035616,2]
[339986559,1728280240339,-1084.78,0.00035616,2]
[339986560,1728280240349,-500.0,0.00035616,2]
[339986561,1728280240359,-527.61051199,0.00035616,2]
[339986562,1728280240368,-626.53,0.00035616,2]
[339986563,1728280240377,-500.0,0.00035616,2]
[339986564,1728280240387,-165.96375133,0.00035616,2]
[339986565,1728280240397,-500.0,0.00035616,2]
[339986566,1728280240406,-500.0,0.00035616,2]
[339986567,1728280240415,-500.0,0.00035616,2]
[339986568,1728280240425,-1001.37,0.00035616,2]
[339986569,1728280240434,-500.0,0.00035616,2]
[339986570,1728280240530,-1730.77,0.00035616,2]